Cogmind - Beta 14 @@@ ROGUE MODE // 2025.01.09 @ 20:59:23 Player: MadBadger Result: Destroyed by Y-45 Defender with Heavy Assault Rifle Performance ------------- Evolutions (1) 500 Regions Visited (2) 400 Robots Destroyed (27) 135 Value Destroyed (667) 667 Prototype IDs (0) 0 Alien Tech Used (0) 0 Bonus (0) 0 TOTAL SCORE: 1702 Bonus ------- None Cogmind --------- Core Integrity 0/400 Matter 167/300 Energy 100/100 System Corruption 7% Temperature Cool (9) Movement Core (700) Ox13 Location -9/Materials Parts ------- > --- POWER (1) -------- (None) > --- PROPULSION (3) --- (None) > --- UTILITY (2) ------ High-capacity Storage Unit > --- WEAPON (3) ------- Hammer (fused) > --- INVENTORY (20) --- Ion Engine Light Ion Engine Deuterium Engine Light Nuclear Core High-powered Shotgun High-powered Shotgun Light Cannon Rocket Launcher Rocket Launcher Welding Torch Hammer Hammer Mining Claw Peak State ------------ > --- POWER ------------ Deuterium Engine > --- PROPULSION ------- Light Treads Light Treads > --- UTILITY ---------- High-capacity Storage Unit Sensor Array > --- WEAPON ----------- High-powered Shotgun High-powered Shotgun Hammer > --- INVENTORY -------- Ion Engine Light Ion Engine Deuterium Engine Light Nuclear Core High-powered Shotgun High-powered Shotgun Light Cannon Light Cannon Grenade Launcher Welding Torch Hammer Hammer Hammer Mining Claw [Rating: 16] Favorites ----------- Power Light Nuclear Core Engine Deuterium Engine Power Core Light Nuclear Core Propulsion Light Treads Treads Light Treads Utility High-capacity Storage Unit Device Sensor Array Storage High-capacity Storage Unit Weapon Hammer Ballistic Gun High-powered Shotgun Ballistic Cannon Light Cannon Launcher Grenade Launcher Impact Weapon Hammer Build | -11 -10 -9 ------- Run | Yrd Mat Mat Slots Evolved 2 | . . 2 Power . | . . . Propulsion 1 | . . 1 Utility . | . . . Weapon 1 | . . 1 Parts Attached 21 | 5 7 9 Power 4 | 1 2 1 Engine 3 | 1 1 1 Core 1 | . 1 . Reactor . | . . . Propulsion 6 | 2 1 3 Treads 6 | 2 1 3 Leg . | . . . Wheel . | . . . Hover . | . . . Flight . | . . . Utility 3 | 1 2 . Device 1 | . 1 . Storage 2 | 1 1 . Processor . | . . . Hackware . | . . . Protection . | . . . Artifact . | . . . Weapon 8 | 1 2 5 Energy Gun . | . . . Energy Cannon . | . . . Ballistic Gun 3 | 1 . 2 Ballistic Cannon 1 | . . 1 Launcher 1 | . . 1 Special Weapon . | . . . Impact Weapon 3 | . 2 1 Slashing Weapon . | . . . Piercing Weapon . | . . . Special Melee Weapon . | . . . Unidentified Prototypes . | . . . Parts Lost 13 | . 2 11 Power 1 | . . 1 Propulsion 6 | . 1 5 Utility 1 | . . 1 Weapon 5 | . 1 4 Highest Loss Streak 7 | . 1 7 To Critical Strikes 1 | . . 1 Average Slot Usage (%) 76 | . 79 71 Engine 3 | . 3 4 Core 6 | . 10 . Treads 21 | . 21 20 Device 2 | . 1 5 Storage 12 | . 14 11 Ballistic Gun 4 | . 3 6 Ballistic Cannon 2 | . . 5 Launcher 1 | . . 5 Impact Weapon 19 | . 23 12 Peak Build Rating 16 | 5 10 16 Average Rating 8 | 4 7 10 On Entrance 5 | . 5 10 Naked Turns . | . . . Heaviest Build 58 | 9 50 58 Greatest Support 40 | 40 40 40 Greatest Overweight (x) 14 | . 2 14 Average Overweight (x) 1 | . 1 1 Largest Inventory Capacity 20 | 8 20 20 Average Capacity 19 | 7 19 20 Most Carried 15 | 3 12 15 Average Carried 10 | 1 9 12 Final Capacity 20 | 8 20 20 Final Carried 13 | 3 12 13 Class Distribution -------------------- 100% | Mutant Dominant Class ---------------- Mutant | -10/Materials Mutant | -9/Materials Resources | -11 -10 -9 ----------- Run | Yrd Mat Mat Matter Collected 670 | 147 188 335 Remotely . | . . . Salvage Created 631 | . 281 350 Parts 41 | . 12 29 Haulers Intercepted . | . . . Recyclers Shooed . | . . . Parts Field Recycled . | . . . Retrieved Matter . | . . . Parts Self-Destructed . | . . . Prevented . | . . . Kills | -11 -10 -9 ------- Run | Yrd Mat Mat Combat Hostiles Destroyed 25 | . 8 17 Melee 7 | . 6 1 Guns 11 | . . 11 Cannons 3 | . . 3 AOE 2 | . . 2 Classes Destroyed 6 | . 4 2 Worker 1 | . 1 . Watcher 1 | . 1 . Swarmer 13 | . 3 10 Grunt 7 | . 5 2 Brawler 1 | . . 1 Sentry 4 | . . 4 Best Kill Streak 3 | . 3 3 Combat Bots Only 3 | . 3 3 Max Kills in Single Turn 2 | . 1 2 Gunslinging 1 | . . 1 Exploded 1 | . . 1 Melee 1 | . 1 1 Uniques/NPCs Destroyed . | . . . Combat | -11 -10 -9 -------- Run | Yrd Mat Mat Hostile Shots Fired 283 | . 72 211 Missed 78 | . 19 59 Damage Taken 2374 | . 642 1732 Core 562 | . 161 401 Absorbed by Shields . | . . . Core Remaining (%) 67 | 100 35 . Volleys Fired 51 | . 7 44 Largest 2 | . 1 2 Hottest 65 | . 20 65 Shots Fired 84 | . 7 77 Gun 55 | . 7 48 Cannon 18 | . . 18 Launcher 11 | . . 11 Special . | . . . Kinetic 73 | . 7 66 Thermal . | . . . Explosive 11 | . . 11 Electromagnetic . | . . . Robot Hit Streak 5 | . 3 5 Robot Miss Streak 5 | . 1 5 Penetration Max . | . . . Secondary Targets 2 | . . 2 Max Gunslinging Chain 1 | . . 1 Shots Hit Robots 72 | . 21 51 Core Hits 36 | . 7 29 Critical Kills 1 | . 1 . Critical Parts Destroyed 3 | . 3 . Critical Strikes 4 | . 4 . Smash 4 | . 4 . Melee Attacks 33 | . 27 6 Impact 33 | . 27 6 Slashing . | . . . Piercing . | . . . Sneak Attacks 3 | . 1 2 Combat Hostiles . | . . . Follow-up Attacks 2 | . 2 . Damage Inflicted 1611 | . 464 1147 Guns 585 | . 32 553 Cannons 164 | . . 164 Explosions 294 | . . 294 Melee 568 | . 432 136 Ramming . | . . . Kinetic 749 | . 32 717 Thermal . | . . . Explosive 294 | . . 294 Electromagnetic . | . . . Impact 568 | . 432 136 Slashing . | . . . Piercing . | . . . Highest Corruption 7 | . 2 7 Average Corruption 3 | . 2 6 Corruption Purged . | . . . Corruption Blocked . | . . . Effects 47 | . 23 24 Message Errors 13 | . 4 9 Matter Fused 10 | . 5 5 Heat Flow Errors 8 | . 5 3 Energy Discharges 4 | . 4 . Parts Rejected 1 | . . 1 Parts Fused 1 | . . 1 Data Loss (minor) 5 | . 2 3 Data Loss (major) 3 | . 3 . Weapon Failures 2 | . . 2 Overload Shots . | . . . Overflow Damage 94 | . 72 22 Projectiles . | . . . Explosions 10 | . . 10 Melee 84 | . 72 12 Knockbacks . | . . . Impact . | . . . Kinetic . | . . . Secondary . | . . . Self-Inflicted Damage 17 | . . 17 Shots 2 | . . 2 Rammed . | . . . Targets Rammed . | . . . Kicked . | . . . Crushed . | . . . Highest Temperature 258 | . 258 245 Average Temperature 86 | . 98 59 Received Heat Transfer 666 | . 297 369 Siege Activations . | . . . Robots Corrupted 3 | . 3 . Combat Hostiles 2 | . 2 . Parts Fried 4 | . 4 . Impact Corruptions 7 | . 6 1 Robots Melted . | . . . Combat Hostiles . | . . . Parts Melted . | . . . Heat Transferred . | . . . Parts Sabotaged . | . . . Parts Stolen . | . . . Parts Stripped . | . . . Power Chain Reactions . | . . . Alert | -11 -10 -9 ------- Run | Yrd Mat Mat Peak Influence 253 | . 85 253 Initial . | . . . Average 60 | . 33 111 Maximum Alert Level 1 | . . 1 Low Security (%) 95 | 100 100 88 Level 1 4 | . . 11 Level 2 . | . . . Level 3 . | . . . Level 4 . | . . . Level 5 . | . . . High Security . | . . . Max Security . | . . . Squads Dispatched 2 | . 1 1 Investigation . | . . . Extermination . | . . . Reinforcement 2 | . 1 1 Assault . | . . . Garrison . | . . . Intercept . | . . . Searches Triggered . | . . . Construction Impeded . | . . . Haulers Reinforced . | . . . Active Scanning Responses . | . . . Cargo Convoy Interrupts . | . . . Stealth | -11 -10 -9 --------- Run | Yrd Mat Mat Distress Signals 4 | . 3 1 Communications Jammed . | . . . Distress Signals . | . . . Times Spotted 44 | . 20 24 Peak Tracking Total 5 | . 5 5 Tactical Retreats 1 | . 1 . Traps | -11 -10 -9 ------- Run | Yrd Mat Mat Traps Triggered 1 | . 1 . Indirectly . | . . . Trap Hack Attempts . | . . . Triggered . | . . . Disarmed . | . . . Reprogrammed . | . . . Reused . | . . . Traps Extracted . | . . . Installed . | . . . Triggered . | . . . Machines | -11 -10 -9 ---------- Run | Yrd Mat Mat Machines Disabled 4 | . . 4 Max in Single Turn 2 | . . 2 Machines Repaired . | . . . Machines Dismantled . | . . . Machines Sabotaged . | . . . Overloaded Fab Kills . | . . . Hacking | -11 -10 -9 --------- Run | Yrd Mat Mat Machines Accessed . | . . . Terminals . | . . . Fabricators . | . . . Repair Stations . | . . . Recycling Units . | . . . Scanalyzers . | . . . Garrison Access . | . . . Total Hacks . | . . . Successful . | . . . Failed . | . . . Catastrophic . | . . . Database Lockouts . | . . . Manual . | . . . Terminals . | . . . Fabricators . | . . . Repair Stations . | . . . Recycling Units . | . . . Scanalyzers . | . . . Garrison Access . | . . . Terminal Hacks . | . . . Fabricator Hacks . | . . . Repair Station Hacks . | . . . Recycling Unit Hacks . | . . . Scanalyzer . | . . . Garrison Access Hacks . | . . . Unauthorized Hacks . | . . . Terminals . | . . . Fabricators . | . . . Repair Stations . | . . . Recycling Units . | . . . Scanalyzers . | . . . Garrison Access . | . . . Data Cores Recovered . | . . . Used . | . . . Hacking Detections . | . . . Full Trace Events . | . . . Feedback Events . | . . . Feedback Blocked . | . . . Robot Schematics Acquired . | . . . Robots Built . | . . . Authchips . | . . . Time . | . . . Total Robot Build Rating . | . . . Part Schematics Acquired . | . . . Parts Built . | . . . Authchips . | . . . Time . | . . . Total Part Build Rating . | . . . Parts Repaired . | . . . Time . | . . . Parts Recycled . | . . . Recycled Matter . | . . . Retrieved Matter . | . . . Retrieved Components . | . . . Parts Scanalyzed . | . . . Part Schematics Acquired . | . . . Parts Damaged . | . . . Bothacking | -11 -10 -9 ------------ Run | Yrd Mat Mat Used RIF Installer . | . . . Robots Hacked . | . . . Non-combat . | . . . Combat . | . . . Robot Hacks Applied . | . . . Relay Couplers Released . | . . . Fabnet Peak Effective % . | . . . Robots Rewired . | . . . Allies Hacked . | . . . Hacks Repelled . | . . . Allies | -11 -10 -9 -------- Run | Yrd Mat Mat Total Allies . | . . . Largest Group . | . . . Highest-Rated Group . | . . . Highest-Rated Ally . | . . . Total Orders . | . . . Ally Attacks . | . . . Total Damage . | . . . Kills . | . . . Allies Corrupted . | . . . Allies Melted . | . . . Intel | -11 -10 -9 ------- Run | Yrd Mat Mat Robot Analysis Total . | . . . Derelict Logs Recovered . | . . . Drone Launches . | . . . Drone Recoveries . | . . . Exploration | -11 -10 -9 ------------- Run | Yrd Mat Mat Turns Passed 3703 | 116 2262 1325 Spaces Moved 1315 | 64 792 459 Core 9 | 2 . 7 Treads 1306 | 62 792 452 Legs . | . . . Wheels . | . . . Hover . | . . . Flight . | . . . Fastest Speed 50 | 50 160 240 Average Speed 257 | 156 270 248 Slowest Speed 750 | 160 320 750 Overloaded Moves . | . . . Propulsion Burnouts . | . . . Robots Hopped . | . . . Cave-ins Triggered . | . . . Exploration Rate (%) 50 | 4 93 54 Regions Visited 2 Branch Regions . Pre-discovered Areas . | . . . Known Exits Taken . | . . . Unknown Exits Taken 2 | 1 1 . Scrap Searched . | . . . Spaces Dug . | . . . Terrain Destroyed 49 | . . 49 Melee . | . . . Projectile . | . . . AOE 49 | . . 49 Terrain Rammed . | . . . Walls Destroyed . | . . . Machines Disabled . | . . . Actions | -11 -10 -9 --------- Run | Yrd Mat Mat Total 1494 | 77 860 557 Wait 52 | 6 18 28 Move 1313 | 63 791 459 Hop . | . . . Pick Up 19 | 3 9 7 Fast Attach 12 | 5 4 3 Attach 6 | . 1 5 Detach 2 | . 1 1 Swap 3 | . 2 1 Drop 5 | . 2 3 Fire 51 | . 7 44 Melee 31 | . 25 6 Ram . | . . . Kick . | . . . Crush . | . . . Escape Stasis . | . . . Rewire . | . . . Trap . | . . . Miscellaneous . | . . . Route ------- -11/Scrapyard -10/Materials (discovered 5 exits: *Mat x3 / [*Min] / [*Sub]) -9/Materials (discovered 1 exit: [*Mat]) History --------- Turn | Location | Event 10 | -11/Scrapyard | Discovered new exit (range 15) 117 | -11/Scrapyard | Entered Materials 310 | -10/Materials | Build established: Mutant 403 | -10/Materials | Discovered new exit (range 4) 747 | -10/Materials | Core integrity fell below 50% 1012 | -10/Materials | Discovered new exit (range 9) 1623 | -10/Materials | Discovered new exit (range 16) 1732 | -10/Materials | Discovered new exit (range 10) 2239 | -10/Materials | Discovered new exit (range 3) 2379 | -10/Materials | Entered another Materials area 2379 | -9/Materials | Evolved 2 slots: Propulsion x1, Weapon x1 3040 | -9/Materials | Lost 7 parts (1p2n1u3w) 3140 | -9/Materials | Discovered new exit (range 16) 3654 | -9/Materials | Core integrity fell below 50% 3690 | -9/Materials | Lost 3 parts (2n1w) 3693 | -9/Materials | Core integrity fell below 20% 3704 | -9/Materials | Destroyed by Y-45 Defender with Heavy Assault Rifle Last Messages --------------- 03653_ Critical hit (Burn: +37). 03653_ Grenade Launcher destroyed. 03656_ A-02 Transporter destroyed. 03659_ Lgt. Treads destroyed. 03665_ System corrupted: Matter fused (-6). 03665_ U-05 Engineer lays Concrete. 03666_ The unstable cave ceiling collapses. 03666_ U-05 Engineer lays Concrete. 03668_ The unstable cave ceiling collapses. 03668_ U-05 Engineer lays Concrete. 03670_ U-05 Engineer builds a Wall. 03680_ U-05 Engineer lays Concrete. 03681_ System corrupted: Lgt. Cannon rejected. 03681_ U-05 Engineer lays Concrete. 03690_ U-05 Engineer builds a Wall. 03691_ U-05 Engineer lays Concrete. 03693_ U-05 Engineer builds a Wall. 03693_ U-05 Engineer lays Concrete. 03699_ N2VNO Map ----- +----------------------------------------------------+ | ????????????????????????????????# ]]] # | | ????????????????????????????????# ] + T | | ????????????????????????????????# ]] # | | ????????????????????????????????# # ##+ | | ????????????????????????????????# ## ## | | ????????????????????????????????########### ## | | ???????????????????????????????############ ## | | ???????????????????????????????# # ## | | ???????????????????????????????# # ## | | ???????????????????????????????# # ## | | ????????????????????????????? ?# # ## | | ?????????????????????????#### ## + #### | | ????????????????????????## # # #??? | | ????????????????????????## # # #??? | | ?????????????????????????# ############ #??? | | ????????????????????????? #??????????# #??? | | ??????????????????????##?# !%! #??????????# #??? | | ???????????????????#### ## ###?????????# #??? | | ???????????????????# # ??????????# #??? | | ???????????????????# """ #???######??# #??? | | ???????????????????# "Y" # #??##!!!!##?# #??? | | ???????????????????+ # #??#! !#?# #??? | | ???????????????????# # #??# #?# #??? | | ???????????????????# "" % #### ### #### | | ???????????????????# " # u *! | | ???????????????????# """Y@ ] !!! | | ???????????????????# !!%!= | | ???????????????????# "" # !################### | | ???????????????????# "" ???????????????? | | ???????????????????# """ # ?????????????? | | ???????????????????# # """"" #????????????? | | ???????????????????######## """"" #????????????? | | ??????????????????????????# """"" #????????????? | | ??????????????????????????# #????????????? | | ??????????????????????????# ????#????????????? | | ??????????????????????????# ??????????????????? | | ??????????????????????????######?????????????????? | | ?????????????????????????????????????????????????? | | ?????????????????????????????????????????????????? | | | | | | | | | | | | | | | | | | | | | | | +----------------------------------------------------+ Best States ------------- Heat Dissipation 28 Energy Generation 14 Energy Capacity 275 Matter Stores 300 Matter Capacity 300 Sight Range 16 Robot Scan Range 14 Terrain Scan Density 10 Evasion (%) 40 Recoil Reduction 2 Item Schematics ----------------- None Robot Schematics ------------------ None Fabricated ------------ Nothing Alien Tech Used ----------------- None Achievements -------------- None Challenges ------------ None Game ------ Seed DynamicChargeLance Manual? 0 Play Time 00:14:40 Cumulative 19.8 hours Start 2025.01.09 @ 20:46:47 End 2025.01.09 @ 20:59:23 Sessions 1 Manual Loads 0 Difficulty Rogue Special Mode None Game No. 40 Rogue 40 Adventurer 0 Explorer 0 Win Type - Total 0 Types 0/0/0/0/0/0/0/0/0 Lore% 7 Gallery% 13 Achievement% 14 Wizard Run 0 Options --------- Layout 0 ASCII 0 Keyboard 1 Movement Numpad Keybinds 0 Fullscreen 1 Font 24/Smallcaps Map View 76x50 Zoom Use 0% Tactical HUD 1 Map Filters NONE Filters NONE Steam 1 RUN: c72268c3-8609-4616-b205-89064ac5d8fb